Cogmind - Beta 13 @@@ ROGUE MODE // 2024.03.31 @ 23:18:07 Player: kasra Result: Destroyed by D-53 Grenadier with Mini Grenade Launcher Performance ------------- Evolutions (0) 0 Regions Visited (2) 400 Robots Destroyed (7) 35 Value Destroyed (212) 212 Prototype IDs (0) 0 Alien Tech Used (0) 0 Bonus (0) 0 TOTAL SCORE: 647 Bonus ------- None Cogmind --------- Core Integrity 0/250 Matter 285/300 Energy 100/100 System Corruption 0% Temperature Cool (0) Movement Core (350) Ox6 Location -10/Mines Parts ------- > --- POWER (1) -------- (None) > --- PROPULSION (2) --- (None) > --- UTILITY (2) ------ Large Storage Unit > --- WEAPON (2) ------- (None) > --- INVENTORY (15) --- EM Pulse Gun Peak State ------------ > --- POWER ------------ Ion Engine > --- PROPULSION ------- Light Treads Light Treads > --- UTILITY ---------- Large Storage Unit Terrain Scan Processor > --- WEAPON ----------- EM Pulse Gun Assault Rifle > --- INVENTORY -------- Ion Engine Grenade Launcher [Rating: 8] Favorites ----------- Power Ion Engine Engine Ion Engine Propulsion Light Treads Treads Light Treads Utility Large Storage Unit Device Terrain Scanner Storage Large Storage Unit Processor Terrain Scan Processor Weapon Assault Rifle Energy Gun EM Pulse Gun Ballistic Gun Assault Rifle Launcher Grenade Launcher Build | -11 -10 -10 ------- Run | Yrd Mat Min Slots Evolved . | . . . Power . | . . . Propulsion . | . . . Utility . | . . . Weapon . | . . . Parts Attached 12 | 6 3 3 Power 2 | 1 . 1 Engine 2 | 1 . 1 Core . | . . . Reactor . | . . . Propulsion 2 | 2 . . Treads 2 | 2 . . Leg . | . . . Wheel . | . . . Hover . | . . . Flight . | . . . Utility 5 | 1 3 1 Device 1 | . 1 . Storage 3 | 1 1 1 Processor 1 | . 1 . Hackware . | . . . Protection . | . . . Artifact . | . . . Weapon 3 | 2 . 1 Energy Gun 1 | 1 . . Energy Cannon . | . . . Ballistic Gun 1 | 1 . . Ballistic Cannon . | . . . Launcher 1 | . . 1 Special Weapon . | . . . Impact Weapon . | . . . Slashing Weapon . | . . . Piercing Weapon . | . . . Special Melee Weapon . | . . . Unidentified Prototypes . | . . . Parts Lost 8 | . 2 6 Power 2 | . 1 1 Propulsion 2 | . . 2 Utility 2 | . 1 1 Weapon 2 | . . 2 Highest Loss Streak 6 | . 1 6 To Critical Strikes . | . . . Average Slot Usage (%) 85 | . 88 84 Engine 13 | . 14 12 Treads 25 | . 28 24 Device 1 | . 4 . Storage 17 | . 12 21 Energy Gun 5 | . 14 . Ballistic Gun 12 | . 14 12 Launcher 7 | . . 12 Naked Turns . | . . . Heaviest Build 31 | 14 30 31 Greatest Support 40 | 40 40 40 Greatest Overweight (x) 9 | . . 9 Average Overweight (x) . | . . . Largest Inventory Capacity 15 | 8 15 15 Average Capacity 13 | 7 12 15 Most Carried 3 | 3 3 2 Average Carried 1 | 1 1 1 Final Capacity 15 | 8 15 15 Final Carried 2 | 1 2 1 Class Distribution -------------------- 100% | Mutant Dominant Class ---------------- Mutant | -10/Materials Mutant | -10/Mines Resources | -11 -10 -10 ----------- Run | Yrd Mat Min Matter Collected 380 | 209 119 52 Remotely . | . . . Salvage Created 199 | . 169 30 Parts 13 | . 11 2 Haulers Intercepted . | . . . Recyclers Shooed . | . . . Parts Field Recycled . | . . . Retrieved Matter . | . . . Parts Self-Destructed . | . . . Prevented . | . . . Kills | -11 -10 -10 ------- Run | Yrd Mat Min Combat Hostiles Destroyed 5 | . 3 2 Guns 3 | . 3 . AOE 2 | . . 2 Classes Destroyed 3 | . 2 1 Worker 1 | . . 1 Builder 1 | . 1 . Grunt 5 | . 3 2 Best Kill Streak 3 | . 2 3 Combat Bots Only 2 | . 2 2 Max Kills in Single Turn 2 | . 1 2 Gunslinging . | . . . Exploded 2 | . . 2 Melee . | . . . Uniques/NPCs Destroyed . | . . . Combat | -11 -10 -10 -------- Run | Yrd Mat Min Hostile Shots Fired 69 | . 45 24 Missed 20 | . 9 11 Damage Taken 912 | . 448 464 Core 260 | . 70 190 Absorbed by Shields . | . . . Core Remaining (%) 100 | 100 . . Volleys Fired 23 | . 18 5 Largest 2 | . 2 2 Hottest 60 | . 60 50 Shots Fired 46 | . 36 10 Gun 41 | . 36 5 Cannon . | . . . Launcher 5 | . . 5 Special . | . . . Kinetic 23 | . 18 5 Thermal . | . . . Explosive 5 | . . 5 Electromagnetic 18 | . 18 . Robot Hit Streak 11 | . 11 1 Robot Miss Streak 5 | . 5 4 Penetration Max . | . . . Secondary Targets 1 | . 1 . Max Gunslinging Chain 1 | . 1 . Shots Hit Robots 24 | . 21 3 Core Hits 20 | . 8 12 Critical Kills . | . . . Critical Parts Destroyed . | . . . Critical Strikes 1 | . 1 . Corrupt 1 | . 1 . Melee Attacks . | . . . Impact . | . . . Slashing . | . . . Piercing . | . . . Sneak Attacks . | . . . Combat Hostiles . | . . . Follow-up Attacks . | . . . Damage Inflicted 590 | . 310 280 Guns 280 | . 266 14 Cannons . | . . . Explosions 310 | . 44 266 Melee . | . . . Ramming . | . . . Kinetic 145 | . 131 14 Thermal 44 | . 44 . Explosive 266 | . . 266 Electromagnetic 135 | . 135 . Impact . | . . . Slashing . | . . . Piercing . | . . . Highest Corruption . | . . . Average Corruption . | . . . Corruption Purged . | . . . Corruption Blocked . | . . . Overload Shots . | . . . Overflow Damage . | . . . Projectiles . | . . . Explosions . | . . . Melee . | . . . Knockbacks . | . . . Impact . | . . . Kinetic . | . . . Secondary . | . . . Self-Inflicted Damage 47 | . 36 11 Shots 2 | . 1 1 Rammed 1 | . . 1 Targets Rammed 1 | . . 1 Kicked . | . . . Crushed . | . . . Highest Temperature 105 | . 105 2 Average Temperature 45 | . 46 2 Received Heat Transfer 225 | . 192 33 Siege Activations . | . . . Robots Corrupted . | . . . Combat Hostiles . | . . . Parts Fried . | . . . Impact Corruptions . | . . . Robots Melted . | . . . Combat Hostiles . | . . . Parts Melted . | . . . Heat Transferred 50 | . 50 . Parts Sabotaged . | . . . Parts Stolen . | . . . Parts Stripped . | . . . Power Chain Reactions 1 | . 1 . Alert | -11 -10 -10 ------- Run | Yrd Mat Min Peak Influence 115 | . 107 115 Initial 37 | . . 37 Average 69 | . 46 103 Maximum Alert Level . | . . . Low Security (%) 100 | 100 100 100 Level 1 . | . . . Level 2 . | . . . Level 3 . | . . . Level 4 . | . . . Level 5 . | . . . High Security . | . . . Max Security . | . . . Squads Dispatched 2 | . 2 . Investigation 1 | . 1 . Extermination . | . . . Reinforcement 1 | . 1 . Assault . | . . . Garrison . | . . . Intercept . | . . . Searches Triggered . | . . . Construction Impeded . | . . . Haulers Reinforced . | . . . Active Scanning Responses . | . . . Cargo Convoy Interrupts . | . . . Stealth | -11 -10 -10 --------- Run | Yrd Mat Min Distress Signals 1 | . 1 . Communications Jammed . | . . . Distress Signals . | . . . Times Spotted 20 | . 11 9 Peak Tracking Total 5 | . 5 5 Tactical Retreats . | . . . Traps | -11 -10 -10 ------- Run | Yrd Mat Min Traps Triggered . | . . . Indirectly . | . . . Trap Hack Attempts . | . . . Triggered . | . . . Disarmed . | . . . Reprogrammed . | . . . Reused . | . . . Traps Extracted . | . . . Installed . | . . . Triggered . | . . . Machines | -11 -10 -10 ---------- Run | Yrd Mat Min Machines Disabled 2 | . 2 . Max in Single Turn 1 | . 1 . Machines Repaired . | . . . Machines Dismantled . | . . . Machines Sabotaged . | . . . Overloaded Fab Kills . | . . . Hacking | -11 -10 -10 --------- Run | Yrd Mat Min Machines Accessed 1 | . 1 . Terminals 1 | . 1 . Fabricators . | . . . Repair Stations . | . . . Recycling Units . | . . . Scanalyzers . | . . . Garrison Access . | . . . Total Hacks 6 | . 6 . Successful 4 | . 4 . Failed 2 | . 2 . Catastrophic 1 | . 1 . Database Lockouts . | . . . Manual . | . . . Terminals 6 | . 6 . Fabricators . | . . . Repair Stations . | . . . Recycling Units . | . . . Scanalyzers . | . . . Garrison Access . | . . . Terminal Hacks 4 | . 4 . Record 3 | . 3 . Recall Reinforcements 1 | . 1 . Fabricator Hacks . | . . . Repair Station Hacks . | . . . Recycling Unit Hacks . | . . . Scanalyzer . | . . . Garrison Access Hacks . | . . . Unauthorized Hacks . | . . . Terminals . | . . . Fabricators . | . . . Repair Stations . | . . . Recycling Units . | . . . Scanalyzers . | . . . Garrison Access . | . . . Data Cores Recovered . | . . . Used . | . . . Hacking Detections 1 | . 1 . Full Trace Events 1 | . 1 . Feedback Events . | . . . Feedback Blocked . | . . . Robot Schematics Acquired . | . . . Robots Built . | . . . Authchips . | . . . Time . | . . . Total Robot Build Rating . | . . . Part Schematics Acquired . | . . . Parts Built . | . . . Authchips . | . . . Time . | . . . Total Part Build Rating . | . . . Parts Repaired . | . . . Time . | . . . Parts Recycled . | . . . Recycled Matter . | . . . Retrieved Matter . | . . . Retrieved Components . | . . . Parts Scanalyzed . | . . . Part Schematics Acquired . | . . . Parts Damaged . | . . . Bothacking | -11 -10 -10 ------------ Run | Yrd Mat Min Used RIF Installer . | . . . Robots Hacked . | . . . Non-combat . | . . . Combat . | . . . Robot Hacks Applied . | . . . Relay Couplers Released . | . . . Fabnet Peak Effective % . | . . . Robots Rewired . | . . . Allies Hacked . | . . . Hacks Repelled . | . . . Allies | -11 -10 -10 -------- Run | Yrd Mat Min Total Allies . | . . . Largest Group . | . . . Highest-Rated Group . | . . . Highest-Rated Ally . | . . . Total Orders . | . . . Ally Attacks . | . . . Total Damage . | . . . Kills . | . . . Allies Corrupted . | . . . Allies Melted . | . . . Intel | -11 -10 -10 ------- Run | Yrd Mat Min Robot Analysis Total . | . . . Derelict Logs Recovered . | . . . Drone Launches . | . . . Drone Recoveries . | . . . Exploration | -11 -10 -10 ------------- Run | Yrd Mat Min Turns Passed 611 | 86 211 314 Spaces Moved 314 | 50 94 170 Core 17 | 7 . 10 Treads 297 | 43 94 160 Legs . | . . . Wheels . | . . . Hover . | . . . Flight . | . . . Fastest Speed 50 | 50 160 160 Average Speed 164 | 144 160 172 Slowest Speed 500 | 160 160 500 Overloaded Moves . | . . . Propulsion Burnouts . | . . . Robots Hopped . | . . . Cave-ins Triggered . | . . . Exploration Rate (%) 18 | 3 22 31 Regions Visited 2 Branch Regions 1 Pre-discovered Areas . | . . . Known Exits Taken . | . . . Unknown Exits Taken 2 | 1 1 . Scrap Searched 1 | . . 1 Spaces Dug . | . . . Terrain Destroyed 30 | . 2 28 Melee . | . . . Projectile . | . . . AOE 30 | . 2 28 Terrain Rammed . | . . . Walls Destroyed . | . . . Machines Disabled . | . . . Actions | -11 -10 -10 --------- Run | Yrd Mat Min Total 365 | 64 120 181 Wait 2 | 2 . . Move 312 | 49 93 170 Hop . | . . . Pick Up 12 | 7 4 1 Fast Attach . | . . . Attach 12 | 6 3 3 Detach 2 | . 1 1 Swap . | . . . Drop 1 | . 1 . Fire 23 | . 18 5 Melee . | . . . Ram . | . . . Kick . | . . . Crush 1 | . . 1 Escape Stasis . | . . . Rewire . | . . . Trap . | . . . Miscellaneous . | . . . Route ------- -11/Scrapyard -10/Materials -10/Mines (discovered 2 exits: [*Mat x2]) History --------- Turn | Location | Event 7 | -11/Scrapyard | Discovered new exit (range 15) 87 | -11/Scrapyard | Entered Materials 232 | -10/Materials | Discovered new exit (range 9) 298 | -10/Materials | Entered Mines 320 | -10/Mines | Discovered new exit (range 12) 324 | -10/Mines | Build established: Mutant 355 | -10/Mines | Discovered new exit (range 6) 551 | -10/Mines | Assembled infested the area 556 | -10/Mines | Assisted by a Guerilla fighting off Assembled 592 | -10/Mines | Core integrity fell below 50% 609 | -10/Mines | Core integrity fell below 20% 612 | -10/Mines | Destroyed by D-53 Grenadier with Mini Grenade Launcher Last Messages --------------- The unstable cave ceiling collapses. Grenade Launcher destroyed. Ion Engine destroyed. R-06 Scavenger collects Wheel. The unstable cave ceiling collapses. R-06 Scavenger collects Cmb. Airjet. Sml. Matter Pod destroyed. The unstable cave ceiling collapses. K-01 Serf collects debris. The unstable cave ceiling collapses. as-03065 destroyed. R-06 Scavenger destroyed. K-01 Serf collects debris. The unstable cave ceiling collapses. Cmb. Airjet crushed. as-18249 destroyed. K-01 Serf collects debris. The unstable cave ceiling collapses. K-01 Serf collects debris. The unstable cave ceiling collapses. Map ----- +----------------------------------------------------+ | ?????????????????????????????????????????????????? | | ?????????????????????????????????????????????????? | | ?????????????????????????????????????????????????? | | ?????????????????????????????????????????????????? | | ?????????????????????????????????????????????????? | | ?????????????????????????????????????????????????? | | ?????????????????????????????????????????????????? | | ?????????????????????????????????????????????????? | | ?????????????????????????????????????????????????? | | ?????????????????????????????????????????????????? | | ?????????????????????????????????????????????????? | | ??????????????????????????????###????????????????? | | ?????????????????????????????? #????????????????? | | ??????????????????????????????# #????????????????? | | ?????????????????#########????# #????????????????? | | #???????# ######## #????# #????????????????? | | ##??????# """ ###### #######??????????? | | ##?????###### """ #??????????? | | ##?????????# ### """ #### ####### ##### #????? | | ##?????#### ### ## # ##??# #????? | | < ####### ######## # #### #######????? | | #???## # ####### ### | | ###### #???# r | | #????## #???# | | # ##?????# ##???# ###### | | ##?????# < ##????# @ d #????????# | | #????# ####### k #????????? | | #???# r ##????????? | | #???# # #????????? | | ##???## ########### ##???????? | | #?????## ##????????## # # = ####???? | | ##??????#####??????#### ##### # % ##??? | | #?????????????????## ##????### = #??? | | ##?????????????????# ##???????# = #??? | | ???????????????????### ##????????# % = #### | | ?????????????????????#####??????????# ! # | | ????????????????????????????????????? # # | | ?????????????????????????????????????### ##### | | ??????????????????????????????????????# ##?????# | | ?????????????????????????????????????# ??????? | | ?????????????????????????????????????# #?????? | | ?????????????????????????????????????# | ?????? | | ?????????????????????????????????????## ????? | | ??????????????????????????????????????# ????? | | ??????????????????????????????????????# ## ????? | | ??????????????????????????????????????| ?? ????? | | ??????????????????????????????????????! ?? ?????? | | ?????????????????????????????????????? ????????? | | ?????????????????????????????????????? ????????? | | ?????????????????????????????????????????????????? | +----------------------------------------------------+ Best States ------------- Heat Dissipation 25 Energy Generation 10 Energy Capacity 250 Matter Stores 298 Matter Capacity 350 Sight Range 16 Terrain Scan Range 14 Terrain Scan Density 85 Evasion (%) 40 Recoil Reduction 2 Item Schematics ----------------- None Robot Schematics ------------------ None Fabricated ------------ Nothing Alien Tech Used ----------------- None Achievements -------------- Crack Shot GoHome() Challenges ------------ None Game ------ Seed DroneSpreadGreatsword Manual? 0 Play Time 00:08:00 Cumulative 1.0 hours Start 2024.03.31 @ 23:11:57 End 2024.03.31 @ 23:18:07 Sessions 1 Manual Loads 0 Difficulty Rogue Special Mode None Game No. 3 Rogue 3 Adventurer 0 Explorer 0 Win Type - Total 0 Types 0/0/0/0/0/0/0/0/0 Lore% 10 Gallery% 4 Achievement% 5 Wizard Run 0 Options --------- Layout 1 ASCII 0 Keyboard 0 Movement Mouse Keybinds 0 Fullscreen 1 Font 32/SmallcapsGlow Map View 50x40 Zoom Use 0% Tactical HUD 0 Map Filters NONE Filters NONE Steam 1 RUN: 759b6020-dcb5-464b-955c-68884a4337a6